fUST/lending_fUST_20240918
["ID","MTS","AMOUNT","RATE_DAILY","PERIOD"]
[338428575,1726631454904,-500.0,0.00019452,2]
[338428576,1726631454915,-502.87,0.00019452,2]
[338428577,1726631454924,-500.0,0.00019452,2]
[338428578,1726631454934,-510.11656811,0.00019452,2]
[338428579,1726631454943,-500.0,0.00019452,2]
[338428580,1726631454953,-500.0,0.00019452,2]
[338428581,1726631454962,-500.0,0.00019452,2]
[338428582,1726631454972,-866.6,0.00019452,2]
[338428583,1726631454983,-500.0,0.00019452,2]
[338428584,1726631454993,-505.13224443,0.00019452,2]
[338428585,1726631455004,-500.0,0.00019452,2]
[338428586,1726631455014,-676.86,0.00019452,2]
[338428587,1726631455025,-500.0,0.00019452,2]
[338428588,1726631455035,-500.0,0.00019452,2]
[338428589,1726631455045,-500.0,0.00019452,2]
[338428590,1726631455054,-500.0,0.00019452,2]
[338428591,1726631455063,-500.0,0.00019452,2]
[338428592,1726631455073,-500.0,0.00019452,2]
[338428593,1726631455083,-1335.82,0.00019452,2]
[338428594,1726631455094,-203.41725751,0.00019452,2]
[338428595,1726631456514,-500.0,0.00019178,2]
[338428596,1726631456525,-500.0,0.00019178,2]
[338428597,1726631456535,-500.0,0.00019178,2]
[338428598,1726631456548,-500.0,0.00019178,2]
[338428599,1726631456559,-296.58274249,0.00019452,2]
[338428600,1726631456568,-500.0,0.00019452,2]
[338428601,1726631456578,-689.54,0.00019452,2]
[338428602,1726631456590,-500.0,0.00019452,2]
[338428603,1726631456600,-500.0,0.00019452,2]
[338428604,1726631456610,-613.01407743,0.00019452,2]
[338428605,1726631456621,-580.52,0.00019452,2]
[338428606,1726631456632,-500.0,0.00019452,2]
[338428607,1726631456642,-500.0,0.00019452,2]
[338428608,1726631456652,-500.0,0.00019452,2]
[338428609,1726631456662,-500.0,0.00019452,2]
[338428610,1726631456674,-500.0,0.00019452,2]
[338428611,1726631456684,-500.0,0.00019452,2]
[338428612,1726631456696,-811.9,0.00019452,2]
[338428613,1726631456706,-673.86,0.00019452,2]
[338428614,1726631456715,-500.0,0.00019452,2]
[338428615,1726631456725,-736.01,0.00019452,2]
[338428616,1726631456734,-500.0,0.00019452,2]
[338428617,1726631456745,-500.0,0.00019452,2]
[338428618,1726631456756,-500.0,0.00019452,2]
[338428619,1726631456766,-500.0,0.00019452,2]
[338428620,1726631456777,-500.0,0.00019452,2]
[338428621,1726631456787,-500.0,0.00019452,2]
[338428622,1726631456798,-500.0,0.00019452,2]
[338428623,1726631456807,-500.0,0.00019452,2]
[338428624,1726631456816,-500.0,0.00019452,2]
[338428625,1726631456826,-453.8257959,0.00019452,2]
[338428626,1726631456837,-1416.91,0.00019452,2]
[338428627,1726631456848,-171.43293218,0.00019452,2]
[338428634,1726631833930,10000.0,0.00023,60]
[338428636,1726631934127,1000.0,0.00024,120]
[338428637,1726631935452,1000.0,0.00024,120]
[338428638,1726631936548,1000.0,0.00024,120]
[338428639,1726631937840,1000.0,0.00024,120]
[338428640,1726631938833,1000.0,0.00024,120]
[338428641,1726631939925,1000.0,0.00024,120]
[338428642,1726631940845,1000.0,0.00024,120]
[338428643,1726631941853,1000.0,0.00024,120]
[338428644,1726631942726,1000.0,0.00024,120]
[338428645,1726631943664,1000.0,0.00024,120]
[338428646,1726631976344,500.0,0.00023,60]
[338428647,1726631983910,1000.0,0.00024,120]
[338428648,1726631985730,1000.0,0.00024,120]
[338428649,1726631986861,1000.0,0.00024,120]
[338428650,1726631988079,1000.0,0.00024,120]
[338428651,1726631989157,1000.0,0.00024,120]
[338428652,1726631990259,1000.0,0.00024,120]
[338428653,1726631992137,1000.0,0.00024,120]
[338428654,1726631992650,1000.0,0.00024,120]
[338428655,1726631993602,1000.0,0.00024,120]
[338428656,1726631994480,1000.0,0.00024,120]
[338428657,1726631995420,1000.0,0.00024,120]
[338428658,1726631996269,1000.0,0.00024,120]
[338428659,1726631997164,1000.0,0.00024,120]
[338428660,1726631998082,1000.0,0.00024,120]
[338428661,1726631999160,1000.0,0.00024,120]
[338428662,1726632000091,1000.0,0.00024,120]
[338428663,1726632001598,1000.0,0.00024,120]
[338428664,1726632013711,841.45,0.00024,120]
[338428666,1726632053425,829.73230983,2e-05,2]
[338428668,1726632098992,1000.0,0.00024,120]
[338428669,1726632099926,1000.0,0.00024,120]
[338428670,1726632100813,1000.0,0.00024,120]
[338428671,1726632101591,1000.0,0.00024,120]
[338428672,1726632102489,1000.0,0.00024,120]
[338428673,1726632103496,1000.0,0.00024,120]
[338428674,1726632104593,1000.0,0.00024,120]
[338428675,1726632105430,1000.0,0.00024,120]
[338428676,1726632106345,1000.0,0.00024,120]
[338428677,1726632107003,1000.0,0.00024,120]
[338428678,1726632110624,1000.0,0.00024,120]
[338428679,1726632113154,1000.0,0.00024,120]
[338428680,1726632114664,1000.0,0.00024,120]
[338428681,1726632115944,1000.0,0.00024,120]
[338428682,1726632117184,1000.0,0.00024,120]
[338428683,1726632118033,1000.0,0.00024,120]
[338428684,1726632119130,1000.0,0.00024,120]
[338428685,1726632120249,1000.0,0.00024,120]
[338428686,1726632121193,1000.0,0.00024,120]
[338428687,1726632122173,1000.0,0.00024,120]
[338428688,1726632126116,1000.0,0.00024,120]
[338428689,1726632136145,781.72,0.00024,120]
[338428690,1726632161403,500.0,0.00023,60]
[338428691,1726632315876,500.0,0.00014012,2]
[338428693,1726632397142,500.0,0.00014012,2]
[338428696,1726632499861,784.51,0.00023,60]
[338428697,1726632510985,10000.0,0.00023,60]
[338428698,1726632517185,10000.0,0.00023,60]
[338428699,1726632521255,1000.0,0.00023,60]
[338428700,1726632521936,1000.0,0.00023,60]
[338428701,1726632522772,1000.0,0.00023,60]
[338428702,1726632523451,1000.0,0.00023,60]
[338428703,1726632524105,1000.0,0.00023,60]
[338428704,1726632524761,1000.0,0.00023,60]
[338428705,1726632525462,1000.0,0.00023,60]
[338428706,1726632526007,10000.0,0.00023,60]
[338428707,1726632526144,1000.0,0.00023,60]
[338428708,1726632526833,1000.0,0.00023,60]
[338428709,1726632527516,1000.0,0.00023,60]
[338428710,1726632528188,1000.0,0.00023,60]
[338428711,1726632528832,1000.0,0.00023,60]
[338428712,1726632529683,1000.0,0.00023,60]
[338428713,1726632530334,1000.0,0.00023,60]
[338428714,1726632531542,1000.0,0.00023,60]
[338428715,1726632531779,1000.0,0.00023,60]
[338428716,1726632532350,1000.0,0.00023,60]
[338428717,1726632533051,537.0,0.00023,60]
[338428718,1726632555526,2194.46,0.00023,60]
[338428719,1726632597931,1000.0,0.00023,60]
[338428720,1726632598572,1000.0,0.00023,60]
[338428721,1726632599243,1000.0,0.00023,60]
[338428722,1726632599923,1000.0,0.00023,60]
[338428723,1726632600884,1000.0,0.00023,60]
[338428724,1726632601315,1000.0,0.00023,60]
[338428725,1726632601984,1000.0,0.00023,60]
[338428726,1726632602700,1000.0,0.00023,60]
[338428727,1726632603346,1000.0,0.00023,60]
[338428728,1726632603978,1000.0,0.00023,60]
[338428729,1726632604712,1000.0,0.00023,60]
[338428730,1726632605636,1000.0,0.00023,60]
[338428731,1726632606071,1000.0,0.00023,60]
[338428732,1726632606735,1000.0,0.00023,60]
[338428733,1726632607422,1088.0,0.00023,60]
[338428775,1726632637994,-2901.96152086,0.00015,12]
[338428776,1726632638009,-300.0,0.00017352,2]
[338428777,1726632638018,-300.0,0.00017352,2]
[338428778,1726632638027,-24900.0,0.00017353,2]
[338428779,1726632638036,-249.3019525,0.00017804,2]
[338428780,1726632638045,-250.59,0.00018027,41]
[338428781,1726632638054,-250.0,0.00018075,2]
[338428782,1726632638063,-250.0,0.00018125,2]
[338428783,1726632638072,-250.0,0.00018175,2]
[338428784,1726632638081,-250.0,0.00018224,2]
[338428785,1726632638090,-250.0,0.00018274,2]
[338428786,1726632638099,-250.0,0.00018323,2]
[338428787,1726632638108,-250.0,0.00018373,2]
[338428788,1726632638117,-192.85443142,0.00018411,2]
[338428789,1726632638128,-250.0,0.00018422,2]
[338428790,1726632638139,-515.796666,0.0001843,2]
[338428791,1726632638150,-250.0,0.00018472,2]
[338428792,1726632638159,-250.0,0.00018522,2]
[338428793,1726632638169,-250.0,0.00018571,2]
[338428794,1726632638180,-250.0,0.00018621,2]
[338428795,1726632638191,-500.0,0.0001863,2]
[338428796,1726632638201,-500.0,0.0001863,2]
[338428797,1726632638211,-500.0,0.0001863,2]
[338428798,1726632638222,-500.0,0.0001863,2]
[338428799,1726632638233,-500.0,0.0001863,2]
[338428800,1726632638243,-500.0,0.0001863,2]
[338428801,1726632638258,-500.0,0.0001863,2]
[338428802,1726632638269,-500.0,0.0001863,2]
[338428803,1726632638281,-500.0,0.0001863,2]
[338428804,1726632638291,-500.0,0.0001863,2]
[338428805,1726632638302,-500.0,0.0001863,2]
[338428806,1726632638313,-500.0,0.0001863,2]
[338428807,1726632638323,-500.0,0.0001863,2]
[338428808,1726632638334,-500.0,0.0001863,2]
[338428809,1726632638344,-500.0,0.0001863,2]
[338428810,1726632638355,-500.0,0.0001863,2]
[338428811,1726632638365,-500.0,0.0001863,2]
[338428812,1726632638376,-500.0,0.0001863,2]
[338428813,1726632638387,-500.0,0.0001863,2]
[338428814,1726632638397,-380.31467667,0.0001863,2]
[338428815,1726632638408,-250.0,0.0001867,2]
[338428816,1726632638419,-178.8068783,0.00018719,2]
[338428817,1726632638430,-500.0,0.00018719,2]
[338428818,1726632638440,-500.0,0.00018719,2]
[338428819,1726632638451,-500.0,0.00018719,2]
[338428820,1726632638461,-334.003816,0.00018719,2]
[338428821,1726632638471,-500.0,0.00018719,2]
[338428822,1726632638482,-500.0,0.00018719,2]
[338428823,1726632638492,-500.0,0.00018719,2]
[338428824,1726632638505,-500.0,0.00018719,2]
[338428825,1726632638515,-500.0,0.00018719,2]
[338428826,1726632638526,-500.0,0.00018719,2]
[338428827,1726632638537,-500.0,0.00018719,2]
[338428828,1726632638549,-250.0,0.0001872,2]
[338428829,1726632638558,-250.0,0.00018769,2]
[338428830,1726632638568,-250.0,0.00018819,2]
[338428831,1726632638579,-250.0,0.00018868,2]
[338428832,1726632638589,-250.0,0.00018918,2]
[338428833,1726632638602,-420.0,0.00018945,2]
[338428834,1726632638613,-250.0,0.00018968,2]
[338428835,1726632638626,-250.0,0.00019017,2]
[338428836,1726632638637,-1506.6987814,0.00019067,2]
[338428837,1726632638647,-1506.69878139,0.0001907,2]
[338428838,1726632638658,-1506.69878139,0.00019073,2]
[338428839,1726632638669,-1506.69878139,0.00019075,2]
[338428840,1726632638678,-1506.69878139,0.00019078,2]
[338428841,1726632638688,-420.0,0.00019087,2]
[338428842,1726632638701,-514.38,0.00019138,3]
[338428843,1726632638711,-120961.747457,0.00019148,3]
[338428844,1726632638722,-36404.0105517,0.00019148,3]
[338428845,1726632638732,-500.0,0.00019157,2]
[338428846,1726632638743,-603.7874538,0.00019157,2]
[338428847,1726632638754,-500.0,0.00019157,2]
[338428848,1726632638765,-582.32475658,0.00019157,2]
[338428849,1726632638774,-228.27008,0.00019157,2]
[338428850,1726632638785,-500.0,0.00019157,2]
[338428851,1726632638795,-463.18228539,0.00019157,2]
[338428852,1726632638804,-500.0,0.00019157,2]
[338428853,1726632638816,-500.0,0.00019157,2]
[338428854,1726632638827,-500.0,0.00019157,2]
[338428855,1726632638837,-500.0,0.00019157,2]
[338428856,1726632638847,-500.0,0.00019157,2]
[338428857,1726632638856,-500.0,0.00019157,2]
[338428858,1726632638866,-293.73737826,0.00019157,2]
[338428859,1726632638875,-181442.621185,0.00019158,3]
[338428860,1726632638885,-218424.06331,0.00019158,3]
[338428861,1726632638895,-18202.0052759,0.00019168,3]
[338428862,1726632638905,-91010.0263794,0.00019168,3]
[338428863,1726632638916,-500.32024169,0.00019173,2]
[338428864,1726632638927,-254.69698023,0.00019173,2]
[338428865,1726632638938,-500.48891412,0.00019173,2]
[338428866,1726632638948,-500.49163467,0.00019173,2]
[338428867,1726632638958,-500.0,0.00019173,2]
[338428868,1726632638969,-500.0,0.00019173,2]
[338428869,1726632638980,-160.04022025,0.00019173,2]
[338428870,1726632638989,-538.72167419,0.00019173,2]
[338428871,1726632638999,-500.76551568,0.00019173,2]
[338428872,1726632639010,-360.07202762,0.00019173,2]
[338428873,1726632639020,-500.78291911,0.00019173,2]
[338428874,1726632639030,-160.11335754,0.00019173,2]
[338428875,1726632639039,-500.37104256,0.00019173,2]
[338428876,1726632639048,-500.0,0.00019173,2]
[338428877,1726632639058,-500.0,0.00019173,2]
[338428878,1726632639068,-159.9027995,0.00019173,2]
[338428879,1726632639078,-200.91528279,0.00019173,2]
[338428880,1726632639087,-500.92865773,0.00019173,2]
[338428881,1726632639098,-500.0,0.00019173,2]
[338428882,1726632639108,-500.50555096,0.00019173,2]
[338428883,1726632639119,-500.0,0.00019173,2]
[338428884,1726632639130,-500.99242898,0.00019173,2]
[338428885,1726632639141,-501.02580175,0.00019173,2]
[338428886,1726632639151,-500.38098052,0.00019173,2]
[338428887,1726632639163,-161.42631546,0.00019177,2]
[338428888,1726632639174,-20065.35768176,0.00019178,5]
[338428889,1726632639183,-151.0,0.00019178,2]
[338428890,1726632639193,-500.0,0.00019178,2]
[338428891,1726632639205,-500.0,0.00019178,2]
[338428892,1726632639216,-500.0,0.00019178,2]
[338428893,1726632639227,-500.0,0.00019178,2]
[338428894,1726632639239,-500.0,0.00019178,2]
[338428895,1726632639250,-154.29237224,0.00019178,2]
[338428896,1726632639262,-500.0,0.00019178,2]
[338428897,1726632639271,-500.0,0.00019178,2]
[338428898,1726632639282,-500.0,0.00019178,2]
[338428899,1726632639293,-1000.0,0.00019178,2]
[338428900,1726632639303,-500.0,0.00019178,2]
[338428901,1726632639314,-500.82107924,0.00019178,2]
[338428902,1726632639325,-500.0,0.00019178,2]
[338428903,1726632639334,-500.0,0.00019178,2]
[338428904,1726632639346,-500.0,0.00019178,2]
[338428905,1726632639356,-500.0,0.00019178,2]
[338428906,1726632639367,-500.0,0.00019178,2]
[338428907,1726632639376,-500.0,0.00019178,2]
[338428908,1726632639386,-500.0,0.00019178,2]
[338428909,1726632639396,-500.0,0.00019178,2]
[338428910,1726632639406,-500.0,0.00019178,2]
[338428911,1726632639416,-853.76,0.00019178,2]
[338428912,1726632639427,-500.0,0.00019178,2]
[338428913,1726632639439,-500.0,0.00019178,2]
[338428914,1726632639450,-500.0,0.00019178,2]
[338428915,1726632639460,-261.40377493,0.00019178,2]
[338428916,1726632639470,-435.42923858,0.00019178,2]
[338428917,1726632639480,-500.0,0.00019178,2]
[338428918,1726632639491,-500.0,0.00019178,2]
[338428919,1726632639503,-500.0,0.00019178,2]
[338428920,1726632639514,-500.0,0.00019178,2]
[338428921,1726632639526,-500.0,0.00019178,2]
[338428922,1726632639537,-210.2631478,0.00019178,2]
[338428923,1726632639548,-500.0,0.00019178,2]
[338428924,1726632639558,-500.0,0.00019178,2]
[338428925,1726632639568,-500.0,0.00019178,2]
[338428926,1726632639578,-500.0,0.00019178,2]
[338428927,1726632639588,-500.0,0.00019178,2]
[338428929,1726632639597,-979.58,0.00019178,2]
[338428931,1726632639609,-500.0,0.00019178,2]
[338428933,1726632639620,-500.0,0.00019178,2]
[338428935,1726632639631,-2756.6,0.00019178,2]
[338428936,1726632639640,-1581.35,0.00019178,2]
[338428937,1726632639650,-500.0,0.00019178,2]
[338428938,1726632639659,-500.0,0.00019178,2]
[338428939,1726632639669,-480.5328709,0.00019178,2]
[338428940,1726632639679,-500.0,0.00019178,2]
[338428941,1726632639689,-659.43,0.00019178,2]
[338428942,1726632639698,-500.60118423,0.00019178,2]
[338428943,1726632639708,-500.0,0.00019178,2]
[338428944,1726632639717,-500.0,0.00019178,2]
[338428945,1726632639726,-500.0,0.00019178,2]
[338428946,1726632639735,-500.0,0.00019178,2]
[338428947,1726632639744,-500.0,0.00019178,2]
[338428948,1726632639755,-500.0,0.00019178,2]
[338428949,1726632639764,-1131.2,0.00019178,2]
[338428951,1726632639774,-500.0,0.00019178,2]
[338428952,1726632639783,-500.0,0.00019178,2]
[338428954,1726632639793,-500.0,0.00019178,2]
[338428955,1726632639802,-500.0,0.00019178,2]
[338428957,1726632639811,-500.0,0.00019178,2]
[338428958,1726632639821,-500.0,0.00019178,2]
[338428959,1726632639831,-151.0,0.00019178,2]
[338428960,1726632639840,-500.0,0.00019178,2]
[338428961,1726632639850,-500.0,0.00019178,2]
[338428962,1726632639859,-545.99,0.00019178,2]
[338428963,1726632639868,-1717.38,0.00019178,2]
[338428964,1726632639877,-500.0,0.00019178,2]
[338428966,1726632639887,-500.0,0.00019178,2]
[338428968,1726632639896,-922.64,0.00019178,2]
[338428970,1726632639906,-1356.71,0.00019178,2]
[338428971,1726632639915,-508.55647824,0.00019178,2]
[338428973,1726632639924,-500.0,0.00019178,2]
[338428975,1726632639934,-500.0,0.00019178,2]
[338428976,1726632639943,-500.0,0.00019178,2]
[338428978,1726632639952,-549.57,0.00019178,2]
[338428980,1726632639961,-1218.86,0.00019178,2]
[338428981,1726632639971,-500.0,0.00019178,2]
[338428983,1726632639982,-500.0,0.00019178,2]
[338428985,1726632639993,-500.0,0.00019178,2]
[338428987,1726632640006,-1738.66,0.00019178,2]
[338428988,1726632640016,-500.0,0.00019178,2]
[338428990,1726632640027,-500.0,0.00019178,2]
[338428992,1726632640040,-500.0,0.00019178,2]
[338428994,1726632640050,-500.0,0.00019178,2]
[338428996,1726632640061,-2247.0,0.00019178,2]
[338428998,1726632640071,-500.0,0.00019178,2]
[338428999,1726632640082,-500.0,0.00019178,2]
[338429001,1726632640092,-500.0,0.00019178,2]
[338429003,1726632640103,-500.74867158,0.00019178,2]
[338429004,1726632640114,-500.0,0.00019178,2]
[338429006,1726632640125,-500.0,0.00019178,2]
[338429008,1726632640136,-500.0,0.00019178,2]
[338429010,1726632640147,-552.58,0.00019178,2]
[338429012,1726632640157,-151.0,0.00019178,2]
[338429014,1726632640169,-500.0,0.00019178,2]
[338429016,1726632640180,-685.6,0.00019178,2]
[338429017,1726632640190,-500.0,0.00019178,2]
[338429019,1726632640201,-500.0,0.00019178,2]
[338429021,1726632640211,-500.0,0.00019178,2]
[338429023,1726632640220,-1782.56,0.00019178,2]
[338429024,1726632640232,-500.0,0.00019178,2]
[338429026,1726632640244,-500.0,0.00019178,2]
[338429028,1726632640255,-500.0,0.00019178,2]
[338429030,1726632640266,-500.0,0.00019178,2]
[338429032,1726632640278,-513.79137478,0.00019178,2]
[338429034,1726632640289,-1783.01,0.00019178,2]
[338429035,1726632640299,-151.0,0.00019178,2]
[338429037,1726632640308,-1312.16,0.00019178,2]
[338429039,1726632640319,-500.0,0.00019178,2]
[338429041,1726632640330,-500.0,0.00019178,2]
[338429043,1726632640342,-929.75,0.00019178,2]
[338429044,1726632640353,-500.0,0.00019178,2]
[338429046,1726632640364,-434.84051108,0.00019178,2]
[338429048,1726632640375,-500.0,0.00019178,2]
[338429050,1726632640386,-223.49469264,0.00019178,2]
[338429052,1726632640398,-500.0,0.00019178,2]
[338429053,1726632640409,-1120.43,0.00019178,2]
[338429055,1726632640420,-500.0,0.00019178,2]
[338429057,1726632640430,-500.0,0.00019178,2]
[338429059,1726632640442,-500.0,0.00019178,2]
[338429061,1726632640453,-500.0,0.00019178,2]
[338429063,1726632640464,-500.0,0.00019178,2]
[338429065,1726632640474,-500.0,0.00019178,2]
[338429066,1726632640483,-500.0,0.00019178,2]
[338429068,1726632640493,-500.98752862,0.00019178,2]
[338429070,1726632640503,-1683.57,0.00019178,2]
[338429072,1726632640512,-500.0,0.00019178,2]
[338429073,1726632640523,-500.0,0.00019178,2]
[338429075,1726632640533,-1000.0,0.00019178,2]
[338429077,1726632640544,-500.0,0.00019178,2]
[338429079,1726632640554,-339.63620813,0.00019178,2]
[338429080,1726632640565,-500.0,0.00019178,2]
[338429082,1726632640574,-1707.57,0.00019178,2]
[338429084,1726632640583,-500.0,0.00019178,2]
[338429086,1726632640594,-174.24022888,0.00019178,2]
[338429088,1726632640604,-772.98,0.00019178,2]
[338429089,1726632640614,-526.12118235,0.00019178,2]
[338429091,1726632640628,-1024.02,0.00019178,2]
[338429093,1726632640638,-626.71542843,0.00019178,2]
[338429095,1726632640648,-151.0,0.00019178,2]
[338429097,1726632640660,-500.0,0.00019178,2]
[338429099,1726632640672,-382.56079052,0.00019178,2]
[338429100,1726632640682,-151.0,0.00019178,2]
[338429102,1726632640694,-511.27479549,0.00019178,2]
[338429104,1726632640705,-500.0,0.00019178,2]
[338429106,1726632640716,-500.0,0.00019178,2]
[338429108,1726632640725,-500.0,0.00019178,2]
[338429110,1726632640734,-500.0,0.00019178,2]
[338429111,1726632640743,-500.0,0.00019178,2]
[338429113,1726632640755,-500.0,0.00019178,2]
[338429115,1726632640764,-500.0,0.00019178,2]
[338429117,1726632640773,-500.0,0.00019178,2]
[338429119,1726632640785,-500.0,0.00019178,2]
[338429132,1726632640943,-500.0,0.00019178,2]
[338429134,1726632640962,-500.0,0.00019178,2]
[338429136,1726632640972,-151.0,0.00019178,2]
[338429138,1726632640981,-500.0,0.00019178,2]
[338429140,1726632640990,-2338.7,0.00019178,2]
[338429141,1726632641000,-596.58861169,0.00019178,2]
[338429143,1726632641012,-1315.72,0.00019178,2]
[338429145,1726632641023,-1206.26,0.00019178,2]
[338429147,1726632641033,-500.0,0.00019178,2]
[338429149,1726632641043,-500.0,0.00019178,2]
[338429150,1726632641053,-500.0,0.00019178,2]
[338429152,1726632641064,-500.0,0.00019178,2]
[338429154,1726632641074,-1270.58,0.00019178,2]
[338429156,1726632641084,-500.0,0.00019178,2]
[338429157,1726632641093,-500.0,0.00019178,2]
[338429159,1726632641103,-532.46,0.00019178,2]
[338429161,1726632641114,-519.95334485,0.00019178,2]
[338429163,1726632641124,-767.41,0.00019178,2]
[338429164,1726632641136,-500.0,0.00019178,2]
[338429166,1726632641146,-500.0,0.00019178,2]
[338429168,1726632641156,-500.0,0.00019178,2]
[338429170,1726632641168,-1245.85,0.00019178,2]
[338429172,1726632641179,-2417.44,0.00019178,2]
[338429173,1726632641190,-500.0,0.00019178,2]
[338429175,1726632641200,-500.0,0.00019178,2]
[338429177,1726632641211,-626.87,0.00019178,2]
[338429179,1726632641221,-500.0,0.00019178,2]
[338429181,1726632641231,-500.0,0.00019178,2]
[338429183,1726632641242,-309.26441141,0.00019178,2]
[338429185,1726632641252,-526.56,0.00019178,2]
[338429186,1726632641273,-500.0,0.00019178,2]
[338429188,1726632641282,-392.2508556,0.00019178,2]
[338429190,1726632641291,-500.0,0.00019178,2]
[338429191,1726632641300,-500.0,0.00019178,2]
[338429193,1726632641309,-500.0,0.00019178,2]
[338429195,1726632641319,-500.0,0.00019178,2]
[338429197,1726632641328,-500.0,0.00019178,2]
[338429198,1726632641337,-500.0,0.00019178,2]
[338429200,1726632641346,-500.0,0.00019178,2]
[338429202,1726632641355,-1800.92,0.00019178,2]
[338429204,1726632641367,-500.0,0.00019178,2]
[338429206,1726632641378,-500.0,0.00019178,2]
[338429208,1726632641388,-500.0,0.00019178,2]
[338429209,1726632641399,-500.0,0.00019178,2]
[338429211,1726632641410,-3535.4,0.00019178,2]
[338429213,1726632641421,-571.62,0.00019178,2]
[338429215,1726632641431,-557.01,0.00019178,2]
[338429217,1726632641443,-500.0,0.00019178,2]
[338429219,1726632641454,-227.97090615,0.00019178,2]
[338429221,1726632641464,-681.31,0.00019178,2]
[338429223,1726632641477,-500.0,0.00019178,2]
[338429225,1726632641488,-500.0,0.00019178,2]
[338429226,1726632641498,-500.0,0.00019178,2]
[338429228,1726632641509,-1466.0,0.00019178,2]
[338429230,1726632641518,-500.0,0.00019178,2]
[338429232,1726632641527,-500.0,0.00019178,2]
[338429234,1726632641537,-511.0,0.00019178,2]
[338429235,1726632641546,-885.04,0.00019178,2]
[338429237,1726632641555,-2456.7,0.00019178,2]
[338429239,1726632641565,-885.04,0.00019178,2]
[338429240,1726632641574,-885.04,0.00019178,2]
[338429242,1726632641585,-885.04,0.00019178,2]
[338429244,1726632641595,-885.04,0.00019178,2]
[338429246,1726632641606,-885.04,0.00019178,2]
[338429248,1726632641615,-885.04,0.00019178,2]
[338429250,1726632641632,-885.04,0.00019178,2]
[338429252,1726632641642,-885.04,0.00019178,2]
[338429253,1726632641652,-885.04,0.00019178,2]
[338429255,1726632641663,-885.04,0.00019178,2]
[338429257,1726632641676,-885.04,0.00019178,2]
[338429259,1726632641687,-500.0,0.00019178,2]
[338429261,1726632641697,-885.04,0.00019178,2]
[338429263,1726632641707,-885.04,0.00019178,2]
[338429265,1726632641718,-885.04,0.00019178,2]
[338429267,1726632641727,-500.0,0.00019178,2]
[338429268,1726632641736,-885.04,0.00019178,2]
[338429270,1726632641747,-1444.42,0.00019178,2]
[338429272,1726632641759,-885.04,0.00019178,2]
[338429274,1726632641769,-885.04,0.00019178,2]
[338429275,1726632641777,-885.04,0.00019178,2]
[338429277,1726632641787,-885.04,0.00019178,2]
[338429279,1726632641797,-885.04,0.00019178,2]
[338429281,1726632641806,-885.04,0.00019178,2]
[338429282,1726632641817,-885.04,0.00019178,2]